Cogmind - Beta 16 *** ADVENTURER MODE // 2025.11.21 @ 16:26:51 Player: Gentle Jesus Result: Self-destructed Performance ------------- Evolutions (2) 1000 Regions Visited (5) 1000 Robots Destroyed (18) 90 Value Destroyed (512) 512 Prototype IDs (0) 0 Alien Tech Used (0) 0 Bonus (170) 170 TOTAL SCORE: 2772 Bonus ------- Follower Combat Kills 170 Cogmind --------- Core Integrity 362/550 Matter 300/300 Energy 265/265 System Corruption 0% Temperature Warning (303) Movement Core (950) Ox18 Location -8/Materials Parts ------- > --- POWER (1) -------- Improved Ion Engine > --- PROPULSION (4) --- (None) > --- UTILITY (3) ------ High-capacity Storage Unit > --- WEAPON (3) ------- Medium Laser Ion Cannon Mace > --- INVENTORY (20) --- Medium Matter Pod (100) Light Armor Plating Flak Cannon Peak State ------------ > --- POWER ------------ Ion Engine > --- PROPULSION ------- Wheel Compact Wheel > --- UTILITY ---------- Improved Heat Sink High-capacity Storage Unit > --- WEAPON ----------- Medium Laser Ion Cannon Mace > --- INVENTORY -------- Light Ion Engine Compact Wheel Medium Matter Pod [Rating: 13] Favorites ----------- Power Light Ion Engine Engine Light Ion Engine Propulsion Compact Wheel Wheel Compact Wheel Utility Improved Heat Sink Device Improved Heat Sink Storage Medium Storage Unit Weapon Mace Energy Gun Medium Laser Energy Cannon Beam Cannon Ballistic Gun Light Assault Rifle Impact Weapon Mace Build | -11 -10 -10 -10 -9 -8 ------- Run | Yrd Mat Min Exi Min Mat Slots Evolved 4 | . . . . . 4 Power . | . . . . . . Propulsion 2 | . . . . . 2 Utility 1 | . . . . . 1 Weapon 1 | . . . . . 1 Parts Attached 21 | 7 6 1 1 2 4 Power 5 | 1 2 . . 1 1 Engine 5 | 1 2 . . 1 1 Core . | . . . . . . Reactor . | . . . . . . Propulsion 5 | 2 1 . . 1 1 Treads . | . . . . . . Leg . | . . . . . . Wheel 5 | 2 1 . . 1 1 Hover . | . . . . . . Flight . | . . . . . . Utility 5 | 2 2 . 1 . . Device 2 | 1 1 . . . . Storage 3 | 1 1 . 1 . . Processor . | . . . . . . Hackware . | . . . . . . Protection . | . . . . . . Artifact . | . . . . . . Weapon 6 | 2 1 1 . . 2 Energy Gun 2 | 1 . . . . 1 Energy Cannon 2 | . . 1 . . 1 Ballistic Gun 1 | 1 . . . . . Ballistic Cannon . | . . . . . . Launcher . | . . . . . . Special Weapon . | . . . . . . Impact Weapon 1 | . 1 . . . . Slashing Weapon . | . . . . . . Piercing Weapon . | . . . . . . Special Melee Weapon . | . . . . . . Unidentified Prototypes . | . . . . . . Parts Lost 9 | . 2 . . 2 5 Power 1 | . . . . . 1 Propulsion 5 | . 1 . . 1 3 Utility 2 | . 1 . . . 1 Weapon 1 | . . . . 1 . Highest Loss Streak 2 | . 2 . . 2 2 To Critical Strikes . | . . . . . . Average Backups 3 | 1 3 4 4 3 3 Power . | . . . . . . Propulsion . | . 1 1 1 . . Utility 1 | . . 2 2 1 1 Weapon . | . 1 1 1 1 . Tool/Special . | . . . . . . Unused Backups 2 | . . . . . 2 Power . | . . . . . . Propulsion . | . . . . . . Utility 1 | . . . . . 1 Weapon 1 | . . . . . 1 Tool/Special . | . . . . . . Average Slot Usage (%) 90 | . 99 100 100 82 61 Engine 13 | . 14 14 14 14 9 Wheel 24 | . 27 28 28 23 12 Device 12 | . 14 14 14 12 7 Storage 13 | . 14 14 14 14 9 Energy Gun 5 | . 13 . . . 6 Energy Cannon 6 | . . 6 14 3 8 Ballistic Gun 5 | . 14 7 . . . Impact Weapon 8 | . . 14 14 14 9 Peak Build Rating 13 | 7 10 10 10 10 13 Average Rating 9 | 4 7 9 10 8 11 On Entrance 7 | . 7 10 10 10 9 Avg Prop Armor Cover (%) . | . . . . . . Naked Turns . | . . . . . . Heaviest Build 58 | 12 19 19 49 48 58 Greatest Support 32 | 32 32 26 26 26 26 Greatest Overweight (x) 5 | . 1 . 1 2 5 Average Overweight (x) . | . . . . 1 3 Largest Inventory Capacity 20 | 8 10 10 20 20 20 Average Capacity 12 | 7 9 10 10 20 20 Most Carried 5 | 3 5 5 5 4 5 Average Carried 3 | 1 3 4 4 3 3 Final Capacity 20 | 8 10 10 20 20 20 Final Carried 4 | 3 4 4 3 4 3 Class Distribution -------------------- 100% | Mutant Dominant Class ---------------- Mutant | -10/Materials Mutant | -10/Mines Mutant | -10/Exiles Mutant | -9/Mines Mutant | -8/Materials Resources | -11 -10 -10 -10 -9 -8 ----------- Run | Yrd Mat Min Exi Min Mat Matter Collected 536 | 240 114 122 . 30 30 Remotely . | . . . . . . Salvage Created 707 | 21 381 . . 63 242 Parts 31 | 3 20 . . 2 6 Haulers Intercepted 1 | . 1 . . . . Recyclers Shooed 2 | . 2 . . . . Parts Field Recycled . | . . . . . . Retrieved Matter . | . . . . . . Parts Self-Destructed . | . . . . . . Prevented . | . . . . . . Parts Restored . | . . . . . . Kills | -11 -10 -10 -10 -9 -8 ------- Run | Yrd Mat Min Exi Min Mat Combat Hostiles Destroyed 13 | . 6 . . . 7 Melee 2 | . . . . . 2 Guns 9 | . 6 . . . 3 Classes Destroyed 8 | 1 4 . . 1 2 Builder 1 | . 1 . . . . Tunneler 1 | 1 . . . . . Hauler 1 | . 1 . . . . Recycler 1 | . . . . 1 . Mechanic 1 | . 1 . . . . Swarmer 3 | . . . . . 3 Grunt 9 | . 6 . . . 3 Sentry 1 | . . . . . 1 Best Kill Streak 4 | 1 3 . . 1 4 Combat Bots Only 4 | . 1 . . . 4 Max Kills in Single Turn 1 | 1 1 . . 1 1 Gunslinging . | . . . . . . Exploded . | . . . . . . Melee 1 | . . . . . 1 Uniques/NPCs Destroyed . | . . . . . . Combat | -11 -10 -10 -10 -9 -8 -------- Run | Yrd Mat Min Exi Min Mat Hostile Shots Fired 159 | . 59 3 . 5 92 Missed 39 | . 16 1 . 1 21 Hits 120 | . 43 2 . 4 71 Melee 4 | . . . . 4 . Projectile 116 | . 43 2 . . 71 Critical Strikes 5 | . 2 . . 2 1 Damage Taken 1274 | . 446 40 . 100 688 Core 303 | . 115 . . . 188 Absorbed by Shields . | . . . . . . Ignored by Resistances 374 | . 133 12 . 27 202 Core Remaining (%) 77 | 100 . . . 54 . Volleys Fired 55 | 1 39 1 . 2 12 Largest 2 | 2 2 1 . 1 2 Hottest 110 | 70 70 20 . 60 110 Shots Fired 107 | 2 78 1 . 2 24 Gun 93 | 2 78 1 . . 12 Cannon 14 | . . . . 2 12 Launcher . | . . . . . . Special . | . . . . . . Kinetic 41 | 1 39 1 . . . Thermal 66 | 1 39 . . 2 24 Explosive . | . . . . . . Electromagnetic . | . . . . . . Robot Hit Streak 23 | 1 23 2 . 4 20 Robot Miss Streak 2 | . 2 . . . 2 Penetration Max . | . . . . . . Secondary Targets . | . . . . . . Shots Hit Robots 101 | 1 64 4 . 7 25 Core Hits 34 | 1 22 . . 2 9 Critical Kills 1 | . . . . . 1 Critical Parts Destroyed 3 | . 2 . . . 1 Critical Strikes 9 | . 7 . . . 2 Burn 5 | . 5 . . . . Meltdown 1 | . . . . . 1 Destroy 2 | . 2 . . . . Smash 1 | . . . . . 1 Melee Attacks 17 | . . 4 . 5 8 Impact 17 | . . 4 . 5 8 Slashing . | . . . . . . Piercing . | . . . . . . Sneak Attacks 1 | . . . . 1 . Combat Hostiles . | . . . . . . Follow-up Attacks . | . . . . . . Damage Inflicted 1589 | 13 683 93 . 254 546 Guns 832 | 13 683 9 . . 127 Cannons 197 | . . . . 35 162 Explosions . | . . . . . . Melee 560 | . . 84 . 219 257 Ramming . | . . . . . . Kinetic 290 | . 281 9 . . . Thermal 739 | 13 402 . . 35 289 Explosive . | . . . . . . Electromagnetic . | . . . . . . Impact 560 | . . 84 . 219 257 Slashing . | . . . . . . Piercing . | . . . . . . Highest Corruption . | . . . . . . Average Corruption . | . . . . . . Corruption Purged . | . . . . . . Corruption Blocked . | . . . . . . Overload Shots . | . . . . . . Overflow Damage 43 | . . 5 . 10 28 Projectiles . | . . . . . . Explosions . | . . . . . . Melee 43 | . . 5 . 10 28 Knockbacks 3 | . . . . 1 2 Impact 3 | . . . . 1 2 Kinetic . | . . . . . . Secondary . | . . . . . . Self-Inflicted Damage . | . . . . . . Shots . | . . . . . . Rammed . | . . . . . . Targets Rammed . | . . . . . . Kicked . | . . . . . . Crushed . | . . . . . . Highest Temperature 303 | 30 239 . . . 303 Average Temperature 98 | 18 100 . . . 97 Received Heat Transfer 699 | . 375 27 . . 297 Siege Activations . | . . . . . . Martial Activations . | . . . . . . Shielding Activations . | . . . . . . Robots Disrupted . | . . . . . . Combat Hostiles . | . . . . . . Robots Corrupted 1 | . . . . . 1 Combat Hostiles 1 | . . . . . 1 Parts Fried 1 | . . . . . 1 Impact Corruptions 4 | . . 1 . 1 2 Robots Melted 1 | . . . . . 1 Combat Hostiles 1 | . . . . . 1 Parts Melted 1 | . . . . . 1 Heat Transferred 2294 | 37 1554 . . 74 629 Parts Sabotaged . | . . . . . . Parts Stolen . | . . . . . . Parts Stripped . | . . . . . . Power Chain Reactions . | . . . . . . Alert | -11 -10 -10 -10 -9 -8 ------- Run | Yrd Mat Min Exi Min Mat Maximum Alert Level . | . . . . . . Low Security (%) 100 | 100 100 100 . 100 100 Level 1 . | . . . . . . Level 2 . | . . . . . . Level 3 . | . . . . . . Level 4 . | . . . . . . Level 5 . | . . . . . . High Security . | . . . . . . Max Security . | . . . . . . Peak Influence 85 | 5 62 85 . 60 77 Initial 11 | . . . . . 11 Average 24 | . 28 19 . 37 28 Influence Increases 563 | 5 172 125 . 65 196 Destroy 0b10 Robot/C 380 | . 120 80 . 40 140 Destroy 0b10 Robot/NC 25 | 5 15 . . 5 . Destroy Leader 82 | . 32 10 . 10 30 Allied During Kill 6 | . . 5 . 1 . Successful Hack 5 | . 5 . . . . Disable Machine 18 | . . . . 9 9 Destroy Structure 2 | . . . . . 2 Lose Combat Pursuer 45 | . . 30 . . 15 Influence Decreases 496 | 5 170 62 65 30 164 Entered New Map 91 | . . 2 65 . 24 Time Decay 306 | 5 150 40 . 30 81 Lost Part 70 | . 20 . . . 50 Lost Ally 29 | . . 20 . . 9 Squads Dispatched 3 | . 1 1 . . 1 Investigation 2 | . 1 . . . 1 Extermination . | . . . . . . Reinforcement . | . . . . . . Assault 1 | . . 1 . . . Garrison . | . . . . . . Intercept . | . . . . . . Searches Triggered . | . . . . . . Construction Impeded . | . . . . . . Haulers Reinforced . | . . . . . . Active Scanning Responses . | . . . . . . Cargo Convoy Interrupts . | . . . . . . Stealth | -11 -10 -10 -10 -9 -8 --------- Run | Yrd Mat Min Exi Min Mat Distress Signals 4 | . 1 . . . 3 Communications Jammed . | . . . . . . Distress Signals . | . . . . . . Times Spotted 33 | . 11 5 . 2 15 Peak Tracking Total 11 | . 3 3 . 2 11 Tactical Retreats 2 | . . 1 . . 1 Traps | -11 -10 -10 -10 -9 -8 ------- Run | Yrd Mat Min Exi Min Mat Traps Triggered 1 | . 1 . . . . Indirectly . | . . . . . . Trap Hack Attempts . | . . . . . . Triggered . | . . . . . . Disarmed . | . . . . . . Reprogrammed . | . . . . . . Reused . | . . . . . . Traps Extracted . | . . . . . . Installed . | . . . . . . Triggered . | . . . . . . Machines | -11 -10 -10 -10 -9 -8 ---------- Run | Yrd Mat Min Exi Min Mat Machines Disabled 2 | . . . . 1 1 Max in Single Turn . | . . . . . . Machines Repaired . | . . . . . . Machines Dismantled . | . . . . . . Machines Sabotaged . | . . . . . . Overloaded Fab Kills . | . . . . . . Hacking | -11 -10 -10 -10 -9 -8 --------- Run | Yrd Mat Min Exi Min Mat Machines Accessed 4 | . 2 . . . 2 Terminals 3 | . 2 . . . 1 Fabricators . | . . . . . . Repair Stations 1 | . . . . . 1 Recycling Units . | . . . . . . Scanalyzers . | . . . . . . Garrison Access . | . . . . . . Total Hacks 10 | . 6 . . . 4 Successful 4 | . 4 . . . . Failed 6 | . 2 . . . 4 Catastrophic . | . . . . . . Database Lockouts . | . . . . . . Manual 5 | . 5 . . . . Terminals 8 | . 6 . . . 2 Fabricators . | . . . . . . Repair Stations 2 | . . . . . 2 Recycling Units . | . . . . . . Scanalyzers . | . . . . . . Garrison Access . | . . . . . . Terminal Hacks 4 | . 4 . . . . Branch Access Points 1 | . 1 . . . . Locate Traps 1 | . 1 . . . . Zone Layout 2 | . 2 . . . . Fabricator Hacks . | . . . . . . Repair Station Hacks . | . . . . . . Recycling Unit Hacks . | . . . . . . Scanalyzer . | . . . . . . Garrison Access Hacks . | . . . . . . Unauthorized Hacks . | . . . . . . Terminals . | . . . . . . Fabricators . | . . . . . . Repair Stations . | . . . . . . Recycling Units . | . . . . . . Scanalyzers . | . . . . . . Garrison Access . | . . . . . . Data Cores Recovered . | . . . . . . Used . | . . . . . . Hacking Detections 3 | . 1 . . . 2 Full Trace Events 1 | . . . . . 1 Feedback Events . | . . . . . . Feedback Blocked . | . . . . . . Robot Schematics Acquired . | . . . . . . Robots Built . | . . . . . . Authchips . | . . . . . . Time . | . . . . . . Total Robot Build Rating . | . . . . . . Part Schematics Acquired . | . . . . . . Parts Built . | . . . . . . Authchips . | . . . . . . Time . | . . . . . . Total Part Build Rating . | . . . . . . Part Studies Acquired . | . . . . . . Parts Repaired . | . . . . . . Time . | . . . . . . Parts Recycled . | . . . . . . Recycled Matter . | . . . . . . Retrieved Matter . | . . . . . . Retrieved Components . | . . . . . . Parts Scanalyzed . | . . . . . . Part Schematics Acquired . | . . . . . . Parts Damaged . | . . . . . . Bothacking | -11 -10 -10 -10 -9 -8 ------------ Run | Yrd Mat Min Exi Min Mat Used RIF Installer . | . . . . . . Robots Hacked . | . . . . . . Non-combat . | . . . . . . Combat . | . . . . . . Robot Hacks Applied . | . . . . . . Relay Couplers Released . | . . . . . . Fabnet Peak Effective % . | . . . . . . Robots Rewired . | . . . . . . Allies Hacked . | . . . . . . Hacks Repelled . | . . . . . . Allies | -11 -10 -10 -10 -9 -8 -------- Run | Yrd Mat Min Exi Min Mat Total Allies 3 | . . 3 . . . Largest Group 3 | . . 3 2 1 1 Highest-Rated Group 76 | . . 76 62 31 31 Highest-Rated Ally 31 | . . 31 31 31 31 Total Orders . | . . . . . . Ally Attacks 29 | . . 17 . 9 3 Total Damage 482 | . . 311 . 151 20 Kills 6 | . . 4 . 2 . Allies Corrupted . | . . . . . . Allies Melted . | . . . . . . Intel | -11 -10 -10 -10 -9 -8 ------- Run | Yrd Mat Min Exi Min Mat Active Infowar (turns) 224 | 7 217 . . . . Seismic 224 | 7 217 . . . . Robot Analysis Total . | . . . . . . Derelict Logs Recovered . | . . . . . . Drone Launches . | . . . . . . Drone Recoveries . | . . . . . . Exploration | -11 -10 -10 -10 -9 -8 ------------- Run | Yrd Mat Min Exi Min Mat Turns Passed 1135 | 68 348 221 208 78 212 Spaces Moved 834 | 56 241 172 222 42 101 Core 7 | 7 . . . . . Treads . | . . . . . . Legs . | . . . . . . Wheels 827 | 49 241 172 222 42 101 Hover . | . . . . . . Flight . | . . . . . . Fastest Speed 50 | 50 90 90 90 105 105 Average Speed 98 | 93 94 90 90 109 138 Slowest Speed 155 | 100 115 90 105 130 155 Overloaded Moves . | . . . . . . Propulsion Burnouts . | . . . . . . Robots Hopped . | . . . . . . Potential Cave-ins . | . . . . . . Cave-ins Triggered . | . . . . . . Exploration Rate (%) 25 | 3 40 35 56 10 10 Regions Visited 5 Branch Regions 3 Pre-discovered Areas . | . . . . . . Known Exits Taken 1 | . 1 . . . . Unknown Exits Taken 4 | 1 . 1 1 1 . Scrap Searched 2 | . . 1 . 1 . Spaces Dug . | . . . . . . Terrain Destroyed 2 | . . . . . 2 Melee . | . . . . . . Projectile 2 | . . . . . 2 AOE . | . . . . . . Terrain Rammed . | . . . . . . Walls Destroyed . | . . . . . . Machines Disabled . | . . . . . . Actions | -11 -10 -10 -10 -9 -8 --------- Run | Yrd Mat Min Exi Min Mat Total 1011 | 66 289 230 230 62 134 Wait 71 | . . 51 5 10 5 Move 829 | 55 240 171 221 41 101 Hop . | . . . . . . Pick Up 9 | 3 1 1 1 1 2 Fast Attach 12 | 7 3 . . 1 1 Attach 5 | . . 1 . 1 3 Detach . | . . . . . . Swap 6 | . 3 . 1 1 1 Drop 7 | . 3 1 2 . 1 Fire 55 | 1 39 1 . 2 12 Melee 17 | . . 4 . 5 8 Ram . | . . . . . . Kick . | . . . . . . Crush . | . . . . . . Escape Stasis . | . . . . . . Rewire . | . . . . . . Trap . | . . . . . . Miscellaneous . | . . . . . . Route ------- -11/Scrapyard -10/Materials (discovered 3 exits: [*Mat x2] / *Min) -10/Mines -10/Exiles (discovered 2 exits: [*Min x2]) -9/Mines -8/Materials History --------- Turn | Location | Event 28 | -11/Scrapyard | Discovered new exit (range 16) 69 | -11/Scrapyard | Entered Materials 81 | -10/Materials | Identified exit to Mines 141 | -10/Materials | Discovered new exit (range 16) 310 | -10/Materials | Build established: Mutant 341 | -10/Materials | Discovered new exit (range 16) 417 | -10/Materials | Entered Mines 478 | -10/Mines | Met a Derelict testing a Signal Generator 569 | -10/Mines | Deemed a non-threat by the Exiles lab entrance 570 | -10/Mines | Discovered new exit (range 5) 638 | -10/Mines | Entered Exiles 638 | -10/Exiles | Accompanied by 2 allies 663 | -10/Exiles | Met 8R-AWN 668 | -10/Exiles | Led the pair of lost Derelicts to a safe place 684 | -10/Exiles | Discovered new exit (range 14) 729 | -10/Exiles | Met EX-HEX 754 | -10/Exiles | Met EX-BIN 783 | -10/Exiles | Met EX-DEC 831 | -10/Exiles | Discovered new exit (range 10) 846 | -10/Exiles | Entered Mines 846 | -9/Mines | Accompanied by 1 ally 903 | -9/Mines | Discovered new exit (range 11) 924 | -9/Mines | Entered Materials 924 | -8/Materials | Accompanied by 1 ally 924 | -8/Materials | Evolved 4 slots: Propulsion x2, Utility x1, Weapon x1 1136 | -8/Materials | Self-destructed Last Messages --------------- Destroyed Lgt. Nuclear Core. G-47 Trooper system corrupted by crushing effect. G-47 Trooper knocked back. Acquired 20 matter. Y-45 Defender destroyed. G-47 Trooper destroyed. Acquired 10 matter. Acquired Lgt. Armor Plating. Connecting with Terminal... K-01 Serf collects debris. Acquired Flak Cannon. W-25 Informer distress signal alerts nearby ally. Wheel destroyed. Dropped Lgt. Ion Engine. Imp. Heat Sink destroyed. S-10 Pest destroyed. Critical hit (Burn: +37). Com. Wheel destroyed. Map ----- +----------------------------------------------------+ | ????????????????????????#""" #??????? | | ????????????????????????#"R #??????? | | ????????????????????????#""" #??????? | | ?????????????????????#??# "" #??????? | | ?????????????????????# ?# #??????? | | ?????????????#+####### #####+####?????? | | ???????????? #?????? | | ???????????? #?????? | | ???????????? #?????? | | ??????????????########### #####?????? | | ????????????????????????# #?????????? | | ????????????????????????# #?????????? | | ????????????????????????# #?????????? | | ????????????????????????# #?????????? | | ????????????????????????# #?????????? | | ????????????????????????# #?????????? | | ?????? ???????????????# #?????????? | | ?????? ??????????????# #?????????? | | ?????? ############??# #?????????? | | ??????? #??# #?????????? | | ?????#? #??# #?????????? | | ?????# "" #??# #?????????? | | ?????# "T #??# m ########??? | | ?????# "" #??# # #??? | | ?????# #??# # T #??? | | ?????# #??#@= #% #??? | | ?????# ####Ygs/[=% #??? | | ?????# g g #%% % #??? | | ?????# * * ; #??? | | ?????# ########??? | | ?????# ########;###?????????? | | ?????# #??????###???????????? | | ?????# ### #?????????????? | | #?????????????? | | #?????????????? | | ?######"""T"""###### #?????????????? | | ??????########??????? ##?????????????? | | ?????????????????????? #??????????????? | | ???????????????????????#??????????????? | | ??????????????????????????????????????? | | ??????????????????????????????????????? | | ??????????????????????????????????????? | | ??????????????????????????????????????? | | ??????????????????????????????????????? | | ??????????????????????????????????????? | | ??????????????????????????????????????? | | ??????????????????????????????????????? | | ??????????????????????????????????????? | | ??????????????????????????????????????? | | ??????????????????????????????????????? | +----------------------------------------------------+ Best States ------------- Heat Dissipation 45 Energy Generation 12 Energy Capacity 265 Matter Stores 300 Matter Capacity 300 Sight Range 16 Terrain Scan Density 10 Resistance: KI 20 Resistance: TH 20 Resistance: EX 20 Resistance: EM 20 Resistance: I 20 Resistance: S 20 Resistance: P 20 Evasion (%) 42 Offensive Hacking 10 Item Schematics ----------------- None Robot Schematics ------------------ None Fabricated ------------ Nothing Repaired ---------- Nothing Studied --------- None Alien Tech Used ----------------- None Achievements -------------- None Challenges ------------ None Game ------ Seed PhysicsArcsightExoskeleton Manual? 0 Play Time 00:10:49 Cumulative 192.4 hours Start 2025.11.20 @ 20:30:54 End 2025.11.21 @ 16:26:51 Sessions 2 Manual Loads 0 Difficulty Adventurer Special Mode None Game No. 154 Rogue 0 Adventurer 154 Explorer 0 Win Type - Total 7 Types 5/0/1/1/0/0/0/0/0/0 Lore% 69 Gallery% 66 Achievement% 48 Wizard Run 0 Options --------- Layout 1 ASCII 0 Keyboard 0 Movement Mouse Keybinds 0 Fullscreen 1 Font 24/Smallcaps Map View 50x35 Zoom Use 3% Tactical HUD 0 Map Filters NONE Filters NONE Steam 1 RUN: c3e1b038-6983-4a25-ae5b-e9fe1f78c496